Cogmind - Beta 10.2 @@@ ROGUE MODE // 2022.01.29 @ 14:32:57 Player: NoNeedToExplain Result: Destroyed by G-50 Soldier with Heavy Laser Performance ------------- Evolutions (4) 2000 Regions Visited (14) 2800 Robots Destroyed (128) 640 Value Destroyed (6287) 6287 Prototype IDs (9) 180 Alien Tech Used (0) 0 Bonus (2349) 2349 TOTAL SCORE: 14256 Bonus ------- High Alert Combat Kills 129 Follower Combat Kills 685 Entered Garrisons 600 Used RIF Installer 1500 Friendly Fire -565 Cogmind --------- Core Integrity 0/850 Matter 265/300 Energy 170/170 System Corruption 0% Temperature Cool (9) Movement Rolling (130) Ox3 Location -6/Lower Caves Parts ------- > --- POWER (1) -------- Micro Fission Core > --- PROPULSION (2) --- Armored Huge Wheel > --- UTILITY (9) ------ Large Storage Unit High-capacity Storage Unit High-capacity Storage Unit Advanced Targeting Computer Advanced Melee Analysis Suite > --- WEAPON (3) ------- Axe Ripper > --- INVENTORY (26) --- Reinforced Deuterium Engine Light Angular Momentum Engine Carbon-fiber Leg Carbon-fiber Leg Advanced Heat Sink Large Storage Unit High-capacity Matter Pod (200) Relay Coupler [NC] (33) Relay Coupler [NC] (27) Relay Coupler [Demolisher] (13) Relay Coupler [Behemoth] (10) Peak State ------------ > --- POWER ------------ Light Angular Momentum Engine > --- PROPULSION ------- Armored Huge Wheel > --- UTILITY ---------- Large Storage Unit High-capacity Storage Unit High-capacity Storage Unit Advanced Targeting Computer Layered Medium Armor Plating Medium Reflective Plating Relay Coupler [Grunt] Relay Coupler [Sentry] Relay Coupler [Sentry] > --- WEAPON ----------- High-powered Shock Rifle Proton Cannon Remote Datajack > --- INVENTORY -------- Improved Deuterium Engine Light Treads Light Treads Improved Medium Treads Wheel Improved Cooling System Large Storage Unit Large Storage Unit High-capacity Matter Pod Long-range Sensor Array Improved Light Armor Plating Relay Coupler [NC] Relay Coupler [NC] Relay Coupler [NC] Relay Coupler [Swarmer] Relay Coupler [Hunter] Relay Coupler [Behemoth] Gauss Rifle Flak Gun Precision Assault Rifle Heavy Machine Gun Improved Proton Missile Launcher Grenade Launcher Ripper [Rating: 60] Favorites ----------- Power Light Angular Momentum Engine Engine Light Angular Momentum Engine Power Core Nuclear Core Propulsion Light Treads Treads Light Treads Leg Carbon-fiber Leg Wheel Armored Huge Wheel Utility Large Storage Unit Device Long-range Sensor Array Storage Large Storage Unit Processor Advanced Targeting Computer Hackware Relay Coupler [Sentry] Protection Improved Light Armor Plating Weapon EM Pulse Gun Energy Gun EM Pulse Gun Energy Cannon Proton Cannon Ballistic Gun Heavy Machine Gun Ballistic Cannon Advanced Assault Cannon Launcher Grenade Launcher Special Weapon Remote Datajack Impact Weapon Mace Slashing Weapon Ripper Build | -11 -10 -10 -10 -9 -8 -8 -8 -7 -7 -6 -6 -6 -6 -6 ------- Run | Scr Mat Min Exi Min Mat Gar Mat Fac Gar Fac Gar Fac Low Low Slots Evolved 8 | . . . . . 4 . . 2 . 2 . . . . Power . | . . . . . . . . . . . . . . . Propulsion . | . . . . . . . . . . . . . . . Utility 7 | . . . . . 4 . . 1 . 2 . . . . Weapon 1 | . . . . . . . . 1 . . . . . . Parts Attached 215 | 7 7 2 . 1 33 15 16 10 22 10 36 11 16 29 Power 13 | 2 1 . . . 1 2 1 1 1 . 1 . . 3 Engine 9 | 2 1 . . . . . 1 1 1 . 1 . . 2 Core 4 | . . . . . 1 2 . . . . . . . 1 Reactor . | . . . . . . . . . . . . . . . Propulsion 37 | 2 . 2 . . 7 5 4 1 . . 5 1 3 7 Treads 25 | . . 2 . . 3 5 3 . . . 5 . 3 4 Leg 1 | . . . . . . . . . . . . . . 1 Wheel 11 | 2 . . . . 4 . 1 1 . . . 1 . 2 Hover . | . . . . . . . . . . . . . . . Flight . | . . . . . . . . . . . . . . . Utility 70 | 1 4 . . . 8 3 6 5 10 6 10 5 6 6 Device 16 | . . . . . 2 1 2 3 1 1 . 2 2 2 Storage 15 | 1 4 . . . 3 . 1 1 . 3 1 . 1 . Processor 3 | . . . . . 1 . . 1 . . . . . 1 Hackware 17 | . . . . . . . . . 5 1 5 3 1 2 Protection 19 | . . . . . 2 2 3 . 4 1 4 . 2 1 Artifact . | . . . . . . . . . . . . . . . Weapon 95 | 2 2 . . 1 17 5 5 3 11 4 20 5 7 13 Energy Gun 18 | 1 . . . 1 8 1 3 1 . . . 1 1 1 Energy Cannon 6 | . . . . . . . . . 2 2 1 . . 1 Ballistic Gun 29 | 1 1 . . . 3 3 1 1 3 1 8 2 3 2 Ballistic Cannon 5 | . . . . . . . . 1 . . 3 . . 1 Launcher 17 | . 1 . . . 5 1 1 . 2 . 3 . 1 3 Special Weapon 16 | . . . . . . . . . 4 1 5 2 2 2 Impact Weapon 1 | . . . . . . . . . . . . . . 1 Slashing Weapon 3 | . . . . . 1 . . . . . . . . 2 Piercing Weapon . | . . . . . . . . . . . . . . . Special Melee Weapon . | . . . . . . . . . . . . . . . Unidentified Prototypes 5 | . . . . . 3 . 1 1 . . . . . . Parts Lost 58 | . . . . 1 9 8 5 . 1 . 4 . 4 26 Power 3 | . . . . . . 1 . . . . . . . 2 Propulsion 13 | . . . . . 4 2 1 . . . . . . 6 Utility 19 | . . . . . 2 2 2 . . . 3 . 2 8 Weapon 23 | . . . . 1 3 3 2 . 1 . 1 . 2 10 Highest Loss Streak 13 | . . . . 1 6 7 3 . 1 . 3 . 4 13 Average Slot Usage (%) 95 | . 97 100 100 100 97 99 95 89 88 93 97 92 99 89 Engine 7 | . 14 14 14 14 5 . 6 7 7 6 6 6 6 5 Core 1 | . . . . . 3 9 2 . . . . . . . Treads 10 | . . 28 28 28 10 17 14 9 . . 10 . 12 12 Wheel 4 | . 28 . . . 6 . 3 2 7 6 1 5 . . Device 6 | . . . . . 8 9 9 13 . 3 . 2 9 16 Storage 23 | . 25 28 28 28 26 27 27 23 23 20 20 20 20 20 Processor 4 | . . . . . 6 9 6 1 7 6 6 6 6 6 Hackware 5 | . . . . . . . . . 9 15 18 16 9 1 Protection 8 | . . . . . 9 8 7 7 8 13 13 13 12 6 Energy Gun 8 | . 14 14 14 27 11 8 8 18 2 . . 4 5 1 Energy Cannon 1 | . . . . . . . . . 4 6 3 5 . 3 Ballistic Gun 8 | . 10 14 14 . 5 8 6 1 8 8 13 7 12 6 Ballistic Cannon 1 | . . . . . . . . 2 5 . . . . 3 Naked Turns . | . . . . . . . . . . . . . . . Heaviest Build 129 | 13 47 46 46 46 70 73 81 106 110 109 129 123 120 116 Greatest Support 58 | 32 32 40 40 40 40 40 40 40 28 28 50 28 58 58 Greatest Overweight (x) 8 | . 1 1 1 1 6 6 8 3 3 3 4 4 4 3 Average Overweight (x) 1 | . . 1 1 1 2 1 4 2 3 3 2 4 1 1 Largest Inventory Capacity 26 | 6 16 16 16 16 24 22 22 24 24 26 26 26 26 26 Average Capacity 22 | 5 14 16 16 16 21 22 22 22 24 24 25 26 26 26 Most Carried 26 | 6 16 16 16 16 22 22 22 24 24 24 26 26 26 25 Average Carried 21 | 2 13 15 16 15 19 20 21 22 23 23 25 24 25 22 Final Capacity 26 | 6 16 16 16 16 22 22 22 24 24 24 26 26 26 26 Final Carried 26 | 6 16 16 16 16 20 22 22 24 24 24 26 25 25 11 Class Distribution -------------------- 37% | Bothacker-Tank 19% | Mutant 16% | Hauler-Mutant 12% | Bothacker-Mutant 9% | Bothacker-Gunner 4% | Scavenger-Mutant Dominant Class ---------------- Mutant | -10/Materials Mutant | -10/Mines Mutant | -10/Exiles Mutant | -9/Mines Hauler-Mutant | -8/Materials Hauler-Mutant | -8/Garrison Scavenger-Mutant | -8/Materials Bothacker-Tank | -7/Factory Bothacker-Mutant | -7/Garrison Bothacker-Mutant | -6/Factory Bothacker-Tank | -6/Garrison Bothacker-Tank | -6/Factory Bothacker-Tank | -6/Lower Caves Bothacker-Gunner | -6/Lower Caves Resources | -11 -10 -10 -10 -9 -8 -8 -8 -7 -7 -6 -6 -6 -6 -6 ----------- Run | Scr Mat Min Exi Min Mat Gar Mat Fac Gar Fac Gar Fac Low Low Matter Collected 4252 | 148 231 55 203 17 385 452 209 192 750 134 720 153 292 311 Remotely 19 | . . . . . . . . 19 . . . . . . Salvage Created 5204 | . 248 . . 123 878 634 450 42 442 108 708 139 468 964 Parts 254 | . 20 . . 4 53 35 20 7 19 1 33 6 22 34 Haulers Intercepted 3 | . . . . . 2 . 1 . . . . . . . Recyclers Shooed 1 | . . . . . 1 . . . . . . . . . Parts Field Recycled . | . . . . . . . . . . . . . . . Retrieved Matter . | . . . . . . . . . . . . . . . Parts Self-Destructed 39 | . . . . . . . . . . . . . 19 20 Prevented 19 | . . . . . . . . . . . . . 9 10 Kills | -11 -10 -10 -10 -9 -8 -8 -8 -7 -7 -6 -6 -6 -6 -6 ------- Run | Scr Mat Min Exi Min Mat Gar Mat Fac Gar Fac Gar Fac Low Low Combat Hostiles Destroyed 111 | . 10 . . 3 20 13 9 . 14 2 11 2 9 18 Melee 4 | . . . . . . . . . . . . . . 4 Guns 59 | . 3 . . 2 12 12 7 . 5 . 9 1 3 5 Cannons 10 | . . . . . . . . . 7 . . 1 . 2 AOE 36 | . 7 . . 1 8 . 2 . 2 2 1 . 6 7 Classes Destroyed 15 | . 5 . . 1 3 2 . 2 1 . 1 . . . Worker 3 | . 1 . . . 2 . . . . . . . . . Builder 2 | . 1 . . . 1 . . . . . . . . . Tunneler 1 | . 1 . . . . . . . . . . . . . Hauler 3 | . . . . . 2 . 1 . . . . . . . Recycler 2 | . . . . . 2 . . . . . . . . . Operator 1 | . . . . . . . . 1 . . . . . . Watcher 1 | . . . . . . . . 1 . . . . . . Swarmer 30 | . 6 . . . 4 . 2 . 6 . 3 . 5 4 Grunt 52 | . 4 . . 2 11 7 5 . 3 2 3 2 4 9 Brawler 7 | . . . . . . 2 . . 2 . 3 . . . Duelist 7 | . . . . 1 1 . . . . . 1 . . 4 Sentry 10 | . . . . . 4 3 1 . 1 . . . . 1 Hunter 5 | . . . . . . 1 1 . 1 . 2 . . . Programmer 1 | . . . . . . . . . 1 . . . . . Behemoth 1 | . . . . . . . . . . . 1 . . . Butcher 2 | . . . . . . . . . . . . . 2 . Best Kill Streak 9 | . 5 . . 3 9 3 7 1 4 2 2 1 6 9 Combat Bots Only 9 | . 3 . . 3 5 3 6 . 4 2 2 1 6 9 Max Kills in Single Turn 4 | . 2 . . 1 4 1 2 1 2 2 2 1 4 4 Gunslinging . | . . . . . . . . . . . . . . . Exploded 4 | . 2 . . 1 3 . 2 . 1 2 1 . 2 4 Melee 1 | . . . . . . . . . . . . . . 1 Uniques/NPCs Destroyed . | . . . . . . . . . . . . . . . Combat | -11 -10 -10 -10 -9 -8 -8 -8 -7 -7 -6 -6 -6 -6 -6 -------- Run | Scr Mat Min Exi Min Mat Gar Mat Fac Gar Fac Gar Fac Low Low Damage Taken 10742 | . 360 . . 308 1048 1401 801 . 936 237 1294 175 975 3207 Core 1643 | . 156 . . 45 187 207 103 . 89 18 85 15 80 658 Absorbed by Shields . | . . . . . . . . . . . . . . . Core Remaining (%) 53 | 100 . . . 19 . . 9 . 87 . . . . . Volleys Fired 313 | . 26 . . 6 47 58 30 5 42 7 47 12 14 19 Largest 3 | . 2 . . 2 2 2 2 3 3 3 3 3 3 3 Hottest 173 | . 60 . . 80 100 80 110 173 139 170 121 163 133 133 Shots Fired 596 | . 45 . . 12 84 113 57 11 77 13 91 25 32 36 Gun 460 | . 38 . . 12 76 113 56 10 30 3 56 17 27 22 Cannon 60 | . . . . . . . . 1 29 6 16 3 . 5 Launcher 38 | . 7 . . . 8 . 1 . 4 . 7 . 3 8 Special 38 | . . . . . . . . . 14 4 12 5 2 1 Kinetic 324 | . 19 . . 4 34 60 43 2 43 3 67 10 18 21 Thermal 95 | . . . . . 24 33 11 5 7 3 . . 6 6 Explosive 25 | . 7 . . . 8 . 1 . 4 . 1 . . 4 Electromagnetic 114 | . 19 . . 8 18 20 2 4 9 3 11 10 6 4 Robot Hit Streak 36 | . 18 . . 4 16 36 16 5 11 14 20 6 12 10 Robot Miss Streak 6 | . 2 . . 1 3 2 1 2 4 1 6 2 1 3 Penetration Max 1 | . . . . . . . . . . . . . . 1 Secondary Targets 8 | . . . . . 2 2 . . . . 1 . 1 2 Max Gunslinging Chain 1 | . . . . . 1 1 . . . . 1 . 1 1 Shots Hit Robots 478 | . 32 . . 9 69 92 49 5 56 11 65 18 24 48 Core Hits 289 | . 20 . . 6 53 38 22 4 28 9 39 3 25 42 Critical Hits 7 | . . . . . 1 2 . . 3 . . . 1 . Critical Kills 2 | . . . . . 1 . . . 1 . . . . . Critical Parts Destroyed 4 | . . . . . . 1 . . 2 . . . 1 . Melee Attacks 22 | . . . . . 1 . . . . . . . . 21 Impact 2 | . . . . . . . . . . . . . . 2 Slashing 20 | . . . . . 1 . . . . . . . . 19 Piercing . | . . . . . . . . . . . . . . . Sneak Attacks . | . . . . . . . . . . . . . . . Combat Hostiles . | . . . . . . . . . . . . . . . Follow-up Attacks 2 | . . . . . . . . . . . . . . 2 Damage Inflicted 13008 | . 1006 . . 218 2152 1669 796 78 1419 338 1534 283 1345 2170 Guns 6426 | . 376 . . 102 1005 1669 680 78 492 75 903 213 460 373 Cannons 876 | . . . . . . . . . 426 156 144 70 . 80 Explosions 5058 | . 630 . . 116 1142 . 116 . 501 107 487 . 885 1074 Melee 643 | . . . . . . . . . . . . . . 643 Ramming 5 | . . . . . 5 . . . . . . . . . Kinetic 4748 | . 145 . . 34 499 882 558 19 708 75 1047 139 290 352 Thermal 2271 | . 85 . . 116 311 506 110 31 103 161 . . 522 326 Explosive 2662 | . 545 . . . 1142 . 116 . 501 . . . . 358 Electromagnetic 2679 | . 231 . . 68 195 281 12 28 107 102 487 144 533 491 Impact 50 | . . . . . . . . . . . . . . 50 Slashing 593 | . . . . . . . . . . . . . . 593 Piercing . | . . . . . . . . . . . . . . . Highest Corruption 2 | . 2 2 2 2 . . . . 1 . . . . . Average Corruption 1 | . 2 2 2 2 . . . . 1 . . . . . Corruption Purged . | . . . . . . . . . . . . . . . Effects 9 | . 1 2 1 4 . . . . 1 . . . . . Message Errors 2 | . . . 1 1 . . . . . . . . . . Heat Flow Errors 1 | . 1 . . . . . . . . . . . . . Energy Discharges 4 | . . 1 . 3 . . . . . . . . . . Data Loss (minor) 1 | . . 1 . . . . . . . . . . . . Weapon Failures 1 | . . . . . . . . . 1 . . . . . Overload Shots . | . . . . . . . . . . . . . . . Overflow Damage 185 | . . . . . 23 . 12 . 56 11 31 . 2 50 Projectiles 22 | . . . . . . . . . . 11 . . . 11 Explosions 151 | . . . . . 23 . 12 . 56 . 31 . 2 27 Melee 12 | . . . . . . . . . . . . . . 12 Knockbacks 4 | . . . . . . . . . 2 . 1 . . 1 Impact . | . . . . . . . . . . . . . . . Kinetic 4 | . . . . . . . . . 2 . 1 . . 1 Secondary . | . . . . . . . . . . . . . . . Self-Inflicted Damage 314 | . 52 . . 47 16 . . . 85 . 17 . 71 26 Shots 15 | . 2 . . 1 1 . . . 3 . 2 . 3 3 Rammed 1 | . . . . . 1 . . . . . . . . . Targets Rammed 1 | . . . . . 1 . . . . . . . . . Kicked . | . . . . . . . . . . . . . . . Crushed . | . . . . . . . . . . . . . . . Highest Temperature 324 | . 260 . . 158 199 171 82 112 324 314 255 202 11 17 Average Temperature 71 | . 64 . . 82 65 38 28 46 99 149 67 88 9 11 Received Heat Transfer 3165 | . 114 . . 54 477 630 297 . 222 102 150 93 261 765 Effects 8 | . . . . . . . . . 1 3 2 2 . . Shutdowns 1 | . . . . . . . . . 1 . . . . . Energy Bleed 1 | . . . . . . . . . . 1 . . . . Interference 6 | . . . . . . . . . . 2 2 2 . . Siege Activations . | . . . . . . . . . . . . . . . Robots Corrupted 3 | . . . . . . 1 . . . . 2 . . . Combat Hostiles 2 | . . . . . . 1 . . . . 1 . . . Parts Fried 6 | . 1 . . . . . . . . . 3 . 1 1 Impact Corruptions . | . . . . . . . . . . . . . . . Robots Melted . | . . . . . . . . . . . . . . . Combat Hostiles . | . . . . . . . . . . . . . . . Parts Melted 3 | . . . . 1 . 1 . . 1 . . . . . Heat Transferred 3896 | . 150 . . 150 666 940 259 74 222 124 . . 800 511 Parts Sabotaged . | . . . . . . . . . . . . . . . Parts Stolen . | . . . . . . . . . . . . . . . Parts Stripped . | . . . . . . . . . . . . . . . Power Chain Reactions 10 | . 2 . . 1 . . . . . 1 . . 4 2 Missiles Intercepted . | . . . . . . . . . . . . . . . Alert | -11 -10 -10 -10 -9 -8 -8 -8 -7 -7 -6 -6 -6 -6 -6 ------- Run | Scr Mat Min Exi Min Mat Gar Mat Fac Gar Fac Gar Fac Low Low Peak Influence 616 | . 209 21 . 60 320 467 466 195 566 366 616 540 . . Initial 323 | . . 21 . . . 112 227 120 5 296 175 323 . . Average 210 | . 72 21 . 51 113 311 380 87 287 293 340 375 . . Maximum Alert Level 2 | . 1 . . . 1 2 2 . 2 1 2 2 . . Low Security (%) 53 | 100 99 100 . 100 87 14 . 100 41 15 8 . . . Level 1 31 | . . . . . 12 65 63 . 17 84 57 57 . . Level 2 15 | . . . . . . 20 36 . 41 . 33 42 . . Level 3 . | . . . . . . . . . . . . . . . Level 4 . | . . . . . . . . . . . . . . . Level 5 . | . . . . . . . . . . . . . . . High Security . | . . . . . . . . . . . . . . . Max Security . | . . . . . . . . . . . . . . . Squads Dispatched 11 | . 1 . . . 2 . 1 1 . . . 5 . 1 Investigation 1 | . . . . . . . . . . . . 1 . . Extermination . | . . . . . . . . . . . . . . . Reinforcement 5 | . 1 . . . 1 . 1 1 . . . 1 . . Assault 2 | . . . . . . . . . . . . 1 . 1 Garrison 3 | . . . . . 1 . . . . . . 2 . . Intercept . | . . . . . . . . . . . . . . . Construction Impeded . | . . . . . . . . . . . . . . . Haulers Reinforced 1 | . . . . . . . . . . . . 1 . . Stealth | -11 -10 -10 -10 -9 -8 -8 -8 -7 -7 -6 -6 -6 -6 -6 --------- Run | Scr Mat Min Exi Min Mat Gar Mat Fac Gar Fac Gar Fac Low Low Distress Signals 6 | . . . . . 3 1 1 . . 1 . . . . Communications Jammed . | . . . . . . . . . . . . . . . Distress Signals . | . . . . . . . . . . . . . . . Times Spotted 207 | . 16 . . 3 39 19 12 3 27 9 26 12 18 23 Peak Tracking Total 11 | . 3 . . 3 6 7 4 1 6 4 5 4 11 8 Tactical Retreats 22 | . 1 . . . 7 4 . . 1 2 2 1 4 . Traps | -11 -10 -10 -10 -9 -8 -8 -8 -7 -7 -6 -6 -6 -6 -6 ------- Run | Scr Mat Min Exi Min Mat Gar Mat Fac Gar Fac Gar Fac Low Low Traps Triggered 11 | . 1 . . . . 1 . . 6 1 1 1 . . Indirectly . | . . . . . . . . . . . . . . . Trap Hack Attempts . | . . . . . . . . . . . . . . . Triggered . | . . . . . . . . . . . . . . . Disarmed . | . . . . . . . . . . . . . . . Reprogrammed . | . . . . . . . . . . . . . . . Reused . | . . . . . . . . . . . . . . . Traps Extracted . | . . . . . . . . . . . . . . . Installed . | . . . . . . . . . . . . . . . Triggered . | . . . . . . . . . . . . . . . Machines | -11 -10 -10 -10 -9 -8 -8 -8 -7 -7 -6 -6 -6 -6 -6 ---------- Run | Scr Mat Min Exi Min Mat Gar Mat Fac Gar Fac Gar Fac Low Low Machines Disabled 17 | . 3 . . . . 1 . . 4 . 6 . 3 . Max in Single Turn 2 | . 2 . . . . 1 . . 1 . 2 . 2 . Garrison Access 1 | . . . . . . . . . . . . 1 . . Garrison Relay 8 | . . . . . . 2 . . 3 . 3 . . . Phase Generator 1 | . . . . . . . . . . . 1 . . . Machines Sabotaged . | . . . . . . . . . . . . . . . Garrisons Compromised . | . . . . . . . . . . . . . . . Overloaded Fab Kills . | . . . . . . . . . . . . . . . Fab Network Shutdowns . | . . . . . . . . . . . . . . . Hacking | -11 -10 -10 -10 -9 -8 -8 -8 -7 -7 -6 -6 -6 -6 -6 --------- Run | Scr Mat Min Exi Min Mat Gar Mat Fac Gar Fac Gar Fac Low Low Machines Accessed 22 | . 6 . . . 7 . . 4 . 3 . . 2 . Terminals 17 | . 6 . . . 6 . . 3 . 1 . . 1 . Fabricators 1 | . . . . . . . . . . 1 . . . . Repair Stations . | . . . . . . . . . . . . . . . Recycling Units . | . . . . . . . . . . . . . . . Scanalyzers . | . . . . . . . . . . . . . . . Garrison Access 3 | . . . . . 1 . . 1 . 1 . . . . Total Hacks 67 | . 17 . . . 25 . . 10 . 6 . . 9 . Successful 47 | . 11 . . . 15 . . 8 . 4 . . 9 . Failed 19 | . 5 . . . 10 . . 2 . 2 . . . . Catastrophic . | . . . . . . . . . . . . . . . Database Lockouts 1 | . 1 . . . . . . . . . . . . . Manual 35 | . 13 . . . 14 . . 6 . 2 . . . . Terminals 55 | . 17 . . . 24 . . 9 . 2 . . 3 . Fabricators 3 | . . . . . . . . . . 3 . . . . Repair Stations . | . . . . . . . . . . . . . . . Recycling Units . | . . . . . . . . . . . . . . . Scanalyzers . | . . . . . . . . . . . . . . . Garrison Access 3 | . . . . . 1 . . 1 . 1 . . . . Terminal Hacks 31 | . 8 . . . 10 . . 4 . . . . 9 . Record 9 | . . . . . . . . . . . . . 9 . Part Schematic 1 | . 1 . . . . . . . . . . . . . Robot Analysis 1 | . 1 . . . . . . . . . . . . . Prototype ID Bank 2 | . 1 . . . . . . 1 . . . . . . Branch Access Points 3 | . 1 . . . 1 . . 1 . . . . . . Terminal Index 3 | . 1 . . . 1 . . 1 . . . . . . Alert Level 3 | . 1 . . . 2 . . . . . . . . . Unreport Threat 4 | . 1 . . . 3 . . . . . . . . . Locate Traps 1 | . . . . . 1 . . . . . . . . . Dispatch Records 1 | . . . . . . . . 1 . . . . . . Hauler Manifests 1 | . 1 . . . . . . . . . . . . . Registered Components 1 | . . . . . 1 . . . . . . . . . Zone Layout 1 | . . . . . 1 . . . . . . . . . Fabricator Hacks 2 | . . . . . . . . . . 2 . . . . Load Schematic 1 | . . . . . . . . . . 1 . . . . Build 1 | . . . . . . . . . . 1 . . . . Repair Station Hacks . | . . . . . . . . . . . . . . . Recycling Unit Hacks . | . . . . . . . . . . . . . . . Scanalyzer . | . . . . . . . . . . . . . . . Garrison Access Hacks 3 | . . . . . 1 . . 1 . 1 . . . . Unlock Access 3 | . . . . . 1 . . 1 . 1 . . . . Unauthorized Hacks 11 | . 3 . . . 4 . . 3 . 1 . . . . Terminals 11 | . 3 . . . 4 . . 3 . 1 . . . . Botnet 11 | . 3 . . . 4 . . 3 . 1 . . . . Fabricators . | . . . . . . . . . . . . . . . Repair Stations . | . . . . . . . . . . . . . . . Recycling Units . | . . . . . . . . . . . . . . . Scanalyzers . | . . . . . . . . . . . . . . . Garrison Access . | . . . . . . . . . . . . . . . Data Cores Recovered 1 | . . . . . . . . 1 . . . . . . Used . | . . . . . . . . . . . . . . . Hacking Detections 18 | . 5 . . . 7 . . 3 . 3 . . . . Full Trace Events . | . . . . . . . . . . . . . . . Feedback Events . | . . . . . . . . . . . . . . . Feedback Blocked . | . . . . . . . . . . . . . . . Robot Schematics Acquired . | . . . . . . . . . . . . . . . Robots Built . | . . . . . . . . . . . . . . . Matter . | . . . . . . . . . . . . . . . Time . | . . . . . . . . . . . . . . . Total Robot Build Rating . | . . . . . . . . . . . . . . . Part Schematics Acquired 1 | . 1 . . . . . . . . . . . . . Parts Built 1 | . . . . . . . . . . 1 . . . . Matter 102 | . . . . . . . . . . 102 . . . . Time 51 | . . . . . . . . . . 51 . . . . Total Part Build Rating 1 | . . . . . . . . . . 1 . . . . Parts Repaired . | . . . . . . . . . . . . . . . Time . | . . . . . . . . . . . . . . . Parts Recycled . | . . . . . . . . . . . . . . . Recycled Matter . | . . . . . . . . . . . . . . . Retrieved Matter . | . . . . . . . . . . . . . . . Retrieved Components . | . . . . . . . . . . . . . . . Parts Scanalyzed . | . . . . . . . . . . . . . . . Part Schematics Acquired . | . . . . . . . . . . . . . . . Parts Damaged . | . . . . . . . . . . . . . . . Bothacking | -11 -10 -10 -10 -9 -8 -8 -8 -7 -7 -6 -6 -6 -6 -6 ------------ Run | Scr Mat Min Exi Min Mat Gar Mat Fac Gar Fac Gar Fac Low Low Used RIF Installer 3 | . . . . . . 1 . . 1 . 1 . . . Command Fork 1 | . . . . . . . . . 1 . . . . . Patrol Navigation 1 | . . . . . . . . . . . 1 . . . Robots Hacked 32 | . . . . . . . . . 9 4 11 5 2 1 Non-combat . | . . . . . . . . . . . . . . . Combat 32 | . . . . . . . . . 9 4 11 5 2 1 Robot Hacks Applied 33 | . . . . . . . . . 10 4 11 5 2 1 amplify_resonance 1 | . . . . . . . . . 1 . . . . . disable_weapons 2 | . . . . . . . . . 1 1 . . . . overwrite_iff 7 | . . . . . . . . . 3 . 3 1 . . streamctrl_high 10 | . . . . . . . . . 3 2 5 . . . formatsys_high 13 | . . . . . . . . . 2 1 3 4 2 1 Relay Couplers Released 32 | . . . . . . 6 . . 12 . 12 2 . . Machine Destruction 32 | . . . . . . 6 . . 12 . 12 2 . . Attached 17 | . . . . . . . . . 5 1 5 3 1 2 Robots Rewired . | . . . . . . . . . . . . . . . Allies Hacked . | . . . . . . . . . . . . . . . Hacks Repelled . | . . . . . . . . . . . . . . . Allies | -11 -10 -10 -10 -9 -8 -8 -8 -7 -7 -6 -6 -6 -6 -6 -------- Run | Scr Mat Min Exi Min Mat Gar Mat Fac Gar Fac Gar Fac Low Low Total Allies 36 | . . 2 . . . . . . 8 3 13 5 4 1 Largest Group 4 | . . 2 2 . . . . . 3 2 3 4 4 2 Highest-Rated Group 137 | . . 45 45 . . . . . 48 58 71 137 111 69 Highest-Rated Ally 49 | . . 31 31 . . . . . 16 32 41 47 49 49 Total Orders 2 | . . . . . . . . . . . . . . 2 STAY 1 | . . . . . . . . . . . . . . 1 FOLLOW 1 | . . . . . . . . . . . . . . 1 Ally Attacks 168 | . . . . . . . . . 38 24 36 37 22 11 Total Damage 3402 | . . . . . . . . . 513 520 714 950 506 199 Kills 28 | . . . . . . . . . 5 4 4 7 7 1 Allies Corrupted 1 | . . . . . . . . . . . 1 . . . Allies Melted . | . . . . . . . . . . . . . . . Intel | -11 -10 -10 -10 -9 -8 -8 -8 -7 -7 -6 -6 -6 -6 -6 ------- Run | Scr Mat Min Exi Min Mat Gar Mat Fac Gar Fac Gar Fac Low Low Robot Analysis Total 1 | . 1 . . . . . . . . . . . . . Derelict Logs Recovered 4 | . . . . 1 . . . . . . . . 2 1 Drone Launches . | . . . . . . . . . . . . . . . Drone Recoveries . | . . . . . . . . . . . . . . . Exploration | -11 -10 -10 -10 -9 -8 -8 -8 -7 -7 -6 -6 -6 -6 -6 ------------- Run | Scr Mat Min Exi Min Mat Gar Mat Fac Gar Fac Gar Fac Low Low Turns Passed 8461 | 56 698 204 261 448 876 566 408 648 706 537 919 202 1207 725 Spaces Moved 4207 | 36 535 98 146 233 417 191 169 338 379 308 382 95 580 300 Core 3 | 3 . . . . . . . . . . . . . . Treads 2298 | . . 98 146 233 221 181 71 192 . . 288 . 570 298 Legs . | . . . . . . . . . . . . . . . Wheels 1906 | 33 535 . . . 196 10 98 146 379 308 94 95 10 2 Hover . | . . . . . . . . . . . . . . . Flight . | . . . . . . . . . . . . . . . Fastest Speed 50 | 50 100 180 180 180 110 140 140 130 130 130 130 140 140 130 Average Speed 158 | 95 108 180 180 180 150 177 162 169 130 130 184 140 185 195 Slowest Speed 220 | 100 110 180 180 180 220 180 180 200 130 130 220 140 200 205 Overloaded Moves . | . . . . . . . . . . . . . . . Propulsion Burnouts . | . . . . . . . . . . . . . . . Robots Hopped . | . . . . . . . . . . . . . . . Cave-ins Triggered . | . . . . . . . . . . . . . . . Exploration Rate (%) 41 | 3 86 41 50 66 50 38 21 11 71 9 60 4 68 51 Regions Visited 14 Branch Regions 5 Pre-discovered Areas 2 | . . . . . . . . . . . . . 1 1 Known Exits Taken 5 | . 1 . . . 1 . 1 1 . 1 . . . . Unknown Exits Taken 6 | 1 . 1 1 1 . . . . . . . 1 1 . Scrap Searched 6 | . . 1 . . . . . . . . . . 4 1 Spaces Dug 16 | . . . . . 16 . . . . . . . . . Terrain Destroyed 267 | . 69 . . 5 70 . 6 1 3 5 85 . 10 13 Melee 1 | . . . . . 1 . . . . . . . . . Projectile 3 | . . . . . 1 . . 1 . 1 . . . . AOE 263 | . 69 . . 5 68 . 6 . 3 4 85 . 10 13 Terrain Rammed . | . . . . . . . . . . . . . . . Walls Destroyed . | . . . . . . . . . . . . . . . Machines Disabled . | . . . . . . . . . . . . . . . Actions | -11 -10 -10 -10 -9 -8 -8 -8 -7 -7 -6 -6 -6 -6 -6 --------- Run | Scr Mat Min Exi Min Mat Gar Mat Fac Gar Fac Gar Fac Low Low Total 5414 | 54 611 125 145 250 573 305 244 409 535 433 522 146 688 374 Wait 380 | 6 18 24 . 8 41 21 19 26 28 91 20 15 62 1 Move 4195 | 35 534 97 145 232 417 190 168 337 378 308 381 94 579 300 Hop . | . . . . . . . . . . . . . . . Pick Up 130 | 6 16 1 . 2 23 12 4 14 13 5 13 8 9 4 Fast Attach 28 | 6 2 . . . 3 2 3 3 1 . 2 . 2 4 Attach 73 | . . . . 1 13 7 4 3 6 2 8 4 7 18 Detach 5 | . 1 . . . . . 1 1 1 . 1 . . . Swap 114 | 1 5 2 . . 17 6 9 4 15 8 26 7 7 7 Drop 89 | . 9 1 . 1 10 7 6 16 10 4 10 6 7 2 Fire 313 | . 26 . . 6 47 58 30 5 42 7 47 12 14 19 Melee 20 | . . . . . 1 . . . . . . . . 19 Ram . | . . . . . . . . . . . . . . . Kick . | . . . . . . . . . . . . . . . Crush 1 | . . . . . 1 . . . . . . . . . Escape Stasis 64 | . . . . . . 2 . . 40 8 14 . . . Rewire 2 | . . . . . . . . . 1 . . . 1 . Trap . | . . . . . . . . . . . . . . . Miscellaneous . | . . . . . . . . . . . . . . . Route ------- -11/Scrapyard -10/Materials (discovered 4 exits: [*Mat x2] / *Min x2) -10/Mines -10/Exiles -9/Mines -8/Materials (discovered 4 exits: *Fac x2 / Sto / Gar) -8/Garrison -8/Materials -7/Factory (discovered 3 exits: Low x2 / Gar) -7/Garrison (discovered 2 exits: *Fac x2) -6/Factory -6/Garrison -6/Factory -6/Lower Caves -6/Lower Caves History --------- Turn | Location | Event 8 | -11/Scrapyard | Discovered new exit (range 16) 57 | -11/Scrapyard | Entered Materials 189 | -10/Materials | Discovered new exit (range 14) 260 | -10/Materials | Central database locked down 300 | -10/Materials | Build established: Mutant 319 | -10/Materials | Core integrity fell below 50% 351 | -10/Materials | Identified exit to Mines 473 | -10/Materials | Discovered new exit (range 14) 634 | -10/Materials | Discovered new exit (range 14) 755 | -10/Materials | Entered Mines 823 | -10/Mines | Met a Derelict bent on vengeance 941 | -10/Mines | Deemed a non-threat by the Exiles lab entrance 943 | -10/Mines | Discovered new exit (range 5) 959 | -10/Mines | Entered Exiles 959 | -10/Exiles | Accompanied by 2 allies 989 | -10/Exiles | Led the pair of lost Derelicts to a safe place 1001 | -10/Exiles | Met 8R-AWN 1033 | -10/Exiles | Met EX-HEX 1103 | -10/Exiles | Met EX-DEC 1199 | -10/Exiles | Discovered new exit (range 14) 1220 | -10/Exiles | Entered Mines 1235 | -9/Mines | Core integrity fell below 20% 1345 | -9/Mines | Learned location of 1 exit from Materials 1512 | -9/Mines | A weapon hastily lodged in a ceiling crevice suddenly fell to the ground 1659 | -9/Mines | Discovered new exit (range 5) 1668 | -9/Mines | Entered Materials 1668 | -8/Materials | Evolved 4 slots: Utility x4 1669 | -8/Materials | Identified exit to Factory 1981 | -8/Materials | Build established: Hauler-Mutant 1990 | -8/Materials | Lost 6 parts (3n1u2w) 2209 | -8/Materials | Identified exit to Storage 2475 | -8/Materials | Garrison activated, responded to threat 2520 | -8/Materials | Discovered exit to Factory (range 10) 2544 | -8/Materials | Identified exit to Garrison 2544 | -8/Materials | Entered Garrison 2551 | -8/Garrison | Installed Relay Interface Framework 2684 | -8/Garrison | Triggered checkpoint 2706 | -8/Garrison | Garrison Relay disabled 2776 | -8/Garrison | Triggered checkpoint 2885 | -8/Garrison | Discovered new exit (range 8) 2898 | -8/Garrison | Triggered checkpoint 2917 | -8/Garrison | Core integrity fell below 50% 2991 | -8/Garrison | Lost 7 parts (1p2n1u3w) 3013 | -8/Garrison | Garrison Relay disabled 3110 | -8/Garrison | Entered Materials 3177 | -8/Materials | Core integrity fell below 20% 3234 | -8/Materials | Lost 3 parts (1n1u1w) 3250 | -8/Materials | Build established: Scavenger-Mutant 3497 | -8/Materials | Discovered exit to Factory (range 3) 3518 | -8/Materials | Entered Factory 3518 | -7/Factory | Evolved 2 slots: Utility x1, Weapon x1 3703 | -7/Factory | Identified exit to Lower Caves 4032 | -7/Factory | Build established: Bothacker-Tank 4164 | -7/Factory | Identified exit to Garrison 4166 | -7/Factory | Entered Garrison 4180 | -7/Garrison | Triggered checkpoint 4292 | -7/Garrison | Garrison Relay disabled 4296 | -7/Garrison | Triggered checkpoint 4394 | -7/Garrison | Triggered checkpoint 4396 | -7/Garrison | Triggered checkpoint 4465 | -7/Garrison | Triggered checkpoint 4554 | -7/Garrison | Triggered checkpoint 4580 | -7/Garrison | Garrison Relay disabled 4616 | -7/Garrison | Discovered new exit (range 12) 4704 | -7/Garrison | Triggered checkpoint 4801 | -7/Garrison | Garrison Relay disabled 4852 | -7/Garrison | Discovered new exit (range 8) 4867 | -7/Garrison | Expanded RIF knowledge: Command Fork 4872 | -7/Garrison | Entered Factory 4872 | -6/Factory | Accompanied by 1 ally 4872 | -6/Factory | Evolved 2 slots: Utility x2 4957 | -6/Factory | Fabricated Hcp. Storage Unit (x1) 5409 | -6/Factory | Identified exit to Garrison 5409 | -6/Factory | Entered Garrison 5416 | -6/Garrison | Expanded RIF knowledge: Watcher Feeds 5466 | -6/Garrison | Triggered checkpoint 5483 | -6/Garrison | Garrison Relay disabled 5557 | -6/Garrison | Spotted B-75 Beast 5561 | -6/Garrison | Triggered checkpoint 5566 | -6/Garrison | Triggered checkpoint 5674 | -6/Garrison | Triggered checkpoint 5678 | -6/Garrison | Destroyed B-75 Beast 5702 | -6/Garrison | Lost 3 parts (2u1w) 5968 | -6/Garrison | Triggered checkpoint 6010 | -6/Garrison | Triggered checkpoint 6077 | -6/Garrison | Garrison Relay disabled 6197 | -6/Garrison | Discovered new exit (range 10) 6270 | -6/Garrison | Phase Generator disabled 6284 | -6/Garrison | Spotted B-75 Beast 6328 | -6/Garrison | Entered Factory 6399 | -6/Factory | Garrison activated, responded to threat 6491 | -6/Factory | Discovered new exit (range 16) 6514 | -6/Factory | Garrison activated, responded to threat 6530 | -6/Factory | Entered Lower Caves 6530 | -6/Lower Caves | Accompanied by 3 allies 6608 | -6/Lower Caves | Learned 8 Factory zone layouts 6608 | -6/Lower Caves | Learned 8 Research zone layouts 6608 | -6/Lower Caves | Learned Factory stockpile data 6608 | -6/Lower Caves | Learned Research stockpile data 6608 | -6/Lower Caves | Learned Extension garrison access intel 6610 | -6/Lower Caves | A Commander dispatched an escort 6755 | -6/Lower Caves | Lost 4 parts (2u2w) 6788 | -6/Lower Caves | Attracted the attention of an 0b10 base 6844 | -6/Lower Caves | Learned location of 1 exit from Research 6844 | -6/Lower Caves | Learned Extension emergency access door positions 7117 | -6/Lower Caves | Learned location of 2 exits from Factory 7498 | -6/Lower Caves | Discovered new exit (range 15) 7737 | -6/Lower Caves | Entered another Lower Caves area 7737 | -6/Lower Caves | Accompanied by 2 allies 7918 | -6/Lower Caves | Lost 6 parts (1n3u2w) 8013 | -6/Lower Caves | Encountered a Warlord checkpoint 8157 | -6/Lower Caves | Build established: Bothacker-Gunner 8330 | -6/Lower Caves | Attracted the attention of an 0b10 outpost 8395 | -6/Lower Caves | Core integrity fell below 50% 8404 | -6/Lower Caves | Destroyed 9 combat bots 8411 | -6/Lower Caves | Lost 13 parts (1p2n3u7w) 8447 | -6/Lower Caves | Core integrity fell below 20% 8462 | -6/Lower Caves | Destroyed by G-50 Soldier with Heavy Laser Last Messages --------------- 08426_ G-67 Veteran Lgt. Antimatter Reactor severed. 08426_ Mace follow-up attack on G-67 Veteran. 08429_ Destroyed Plasma Rifle. 08429_ Mace destroyed. 08432_ Arm. Treads destroyed. 08433_ M-28 Smith fits Backup Laser III on G-67 Veteran. 08436_ M-28 Smith fits Backup Power III on G-67 Veteran. 08441_ Adv. Heat Sink destroyed. 08442_ L-41 Fighter Carbon-fiber Leg severed. 08444_ Adv. Heat Sink destroyed. 08445_ L-41 Fighter destroyed. 08446_ Lgt. Angular Momentum Engine destroyed. 08448_ Wheel destroyed. 08450_ Dropped Lgt. Treads. 08452_ Acquired Axe. 08455_ Core Shielding fries itself beyond repair. 08458_ Microactuators fries itself beyond repair. 08458_ G-67 Veteran destroyed. 08461_ G-50 Soldier Lgt. Angular Momentum Engine severed. 08462_ Adv. Heat Sink fries itself beyond repair. Map ----- +----------------------------------------------------+ | ??????????### #???## ######?## | | ????????????# #????###?????## | | ????????????## ##????????????# | | ?????????????#### ### #?????????????# | | ????????????????###?## ##????????????## | | ?????????????????????# ##????????????#### | | ?????????????????????## ###?????????????# | | ??????????????????????## #????????????## | | ???????????????????????# #??????????## | | ???????????????????????############?????# | | ?????????????????????????????# ######## ### | | ??????????????????????????????# ## #?###?## | | ???????????????????????????????# #????## ## | | ???????????????????????????????# #????# ### | | ??????????????????????????????## ###### #?? | | ??????????????????????????????# ##? | | ?????????????????????????????## #? | | ???????????????????????????### ##### #? | | ??????????????????????????## #???### # | | ??????????????????????????# #?????? | | ????????????????????####### #??????? | | ????????????????????# ##??????? | | ????????????????????# ######## # ##????????? | | ????????????? ????## # #?"""""# ####?????????? | | ?????????? ## ????## #!#" # #????????????? | | ???????? ??## @%+%" # ## ????????? | | ??????????# ## *g### # # #???????? | | ???????????# = =*# ???????? | | ????????????# ## %g# ??????? | | ??????????????????## #% #???????? | | ???????????????????### ## = #???????? | | ?????????????????????# ?## % # #???????? | | ?????????????????????# ??### #??????? | | ?????????????????????# ????## ?????? | | ?????????????????????##?????# ??????? | | ????????????????????????????# ???????? | | ????????????????????????????# ### ????????? | | ????????????????????????????######??? ????????? | | ?????????????????????????????????????? ????????? | | ??????????????????????????????????????? ????????? | | ?????????????????????????????????????????????????? | | ?????????????????????????????????????????????????? | | ?????????????????????????????????????????????????? | | ?????????????????????????????????????????????????? | | ?????????????????????????????????????????????????? | | ?????????????????????????????????????????????????? | | ?????????????????????????????????????????????????? | | ?????????????????????????????????????????????????? | | ?????????????????????????????????????????????????? | | ?????????????????????????????????????????????????? | +----------------------------------------------------+ Best States ------------- Heat Dissipation 75 Coolant Potential 50 Energy Generation 18 Energy Capacity 290 Matter Stores 300 Matter Capacity 300 Sight Range 16 Robot Scan Range 20 Terrain Scan Density 10 Armor Coverage 825 Resistance: TH 15 Evasion (%) 40 Targeting Accuracy 8 Melee Accuracy 8 Recoil Reduction 2 Relay Coupler Types 89 Relay Coupler Value 3 Item Schematics ----------------- Hcp. Storage Unit | -10/Materials | Hacked Robot Schematics ------------------ None Fabricated ------------ Hcp. Storage Unit | x1 | -6/Factory Alien Tech Used ----------------- None Achievements -------------- Error 47 Challenges ------------ None Game ------ Seed RiotCannonTrap Manual? 0 Play Time 02:03:54 Cumulative 82.1 hours Start 2022.01.28 @ 01:00:18 End 2022.01.29 @ 14:32:57 Sessions 3 Manual Loads 0 Difficulty Rogue Special Mode None Game No. 46 Rogue 46 Adventurer 0 Explorer 0 Win Type - Total 5 Types 5/0/0/0/0/0/0/0/0 Lore% 44 Gallery% 58 Achievement% 51 Wizard Run 0 Options --------- ASCII 0 Keyboard 0 Movement Numpad Keybinds 0 Fullscreen 1 Font 24/Smallcaps Map View 76x50 Tactical HUD 1 Map Filters NONE Filters NONE Steam 1 RUN: 9598e9ca-3a91-4066-91df-d65b9ced0981